bitfinex-derivatives/quotes_BTCF0:USTF0_20210104
["timestamp","ask_amount","ask_price","bid_price","bid_amount"]
[1609726841733,4.694,33118.0,33097.0,0.14276]
[1609726841935,4.694,33118.0,33093.0,4.0816]
[1609726842138,0.1771,33117.0,33093.0,4.0816]
[1609726842334,1.0,33113.0,33093.0,4.0816]
[1609726842736,1.0,33113.0,33104.0,0.14033567]
[1609726844438,1.0,33115.0,33104.0,0.14033567]
[1609726844639,0.14033567,33105.0,33104.0,0.14033567]
[1609726846241,4.80113567,33105.0,33104.0,0.14033567]
[1609726847445,0.14033567,33105.0,33104.0,0.14033567]
[1609726855452,0.14033567,33105.0,33102.0,0.13661]
[1609726855652,0.14033567,33105.0,33094.0,0.2951]
[1609726856654,1.0,33116.0,33101.0,0.14033567]
[1609726856954,1.0,33116.0,33101.0,0.24771567]
[1609726857154,4.362,33111.0,33101.0,0.24771567]
[1609726858656,0.14033567,33102.0,33101.0,0.24771567]
[1609726861758,0.14033567,33102.0,33101.0,0.10738]
[1609726862158,0.14033567,33102.0,33094.0,0.2951]
[1609726862659,1.0,33109.0,33095.0,0.14033567]
[1609726862859,1.0,33109.0,33095.0,0.27329567]
[1609726863061,1.0,33109.0,33095.0,0.13296]
[1609726863261,3.5718,33101.0,33095.0,0.13296]
[1609726863864,3.5718,33101.0,33091.0,0.005]
[1609726864462,1.0,33095.0,33091.0,0.005]
[1609726864662,0.14033567,33092.0,33091.0,0.005]
[1609726867967,2.49784231,33092.0,33091.0,0.00313171]
[1609726868367,2.04945232,33092.0,33091.0,0.00313171]
[1609726868968,1.73423012,33092.0,33091.0,0.00313171]
[1609726872874,2.4987565,33092.0,33091.0,0.00313171]
[1609726873174,2.05036674,33092.0,33091.0,0.00313171]
[1609726873675,2.49876007,33092.0,33091.0,0.00313171]
[1609726884192,1.73423369,33092.0,33091.0,0.00313171]
[1609726887598,1.41189802,33092.0,33091.0,0.00313171]
[1609726889902,0.52202236,33096.0,33091.0,0.00313171]
[1609726890802,0.52202236,33096.0,33095.0,0.14033567]
[1609726908831,0.67848836,33099.0,33095.0,4.08433567]
[1609726909033,9.2534,33140.0,33095.0,4.08433567]
[1609726909034,0.87215018,33105.0,33095.0,4.08433567]
[1609726909634,0.87508888,33106.0,33095.0,4.08433567]
[1609726910337,0.87552285,33108.0,33095.0,4.08433567]
[1609726910935,0.87554147,33109.0,33095.0,4.08433567]
[1609726911136,0.87554147,33109.0,33108.0,0.14033567]
[1609726911735,0.67254147,33109.0,33108.0,0.14033567]
[1609726913338,0.98058544,33114.0,33108.0,0.14033567]
[1609726913539,0.98058544,33114.0,33112.0,4.7216]
[1609726914941,0.29218544,33114.0,33112.0,4.7216]
[1609726915141,0.29218544,33114.0,33113.0,0.14033567]
[1609726916142,0.67230965,33121.0,33113.0,0.14033567]
[1609726916343,0.67230965,33121.0,33117.0,5.0441]
[1609726916744,0.13544,33124.0,33117.0,5.0441]
[1609726917142,0.01771974,33132.0,33123.0,0.14033567]
[1609726917342,0.01771974,33132.0,33124.0,0.6633]
[1609726917542,0.63177021,33134.0,33124.0,0.6633]
[1609726917543,0.01772168,33131.0,33124.0,0.6633]
[1609726919144,0.01772168,33131.0,33123.0,0.14033567]
[1609726920548,0.01772488,33133.0,33123.0,0.14033567]
[1609726921148,0.14971,33135.0,33123.0,0.14033567]
[1609726922049,0.14971,33135.0,33124.0,3.4084]
[1609726922249,0.14971,33135.0,33123.0,0.14033567]
[1609726923149,0.14033567,33133.0,33123.0,0.14033567]
[1609726924348,0.01766013,33134.0,33123.0,0.14033567]
[1609726924750,4.8263,33130.0,33123.0,0.14033567]
[1609726926956,0.14033567,33132.0,33123.0,0.14033567]
[1609726930056,0.16741,33135.0,33123.0,0.14033567]
[1609726930356,0.14971,33135.0,33123.0,0.14033567]
[1609726931259,0.14033567,33134.0,33123.0,0.14033567]
[1609726932058,0.14033567,33134.0,33124.0,3.8672]
[1609726932558,0.14033567,33134.0,33123.0,0.14033567]
[1609726932758,0.14033567,33134.0,33123.0,4.17873567]
[1609726933159,0.14033567,33124.0,33123.0,4.17873567]
[1609726933359,0.14033567,33124.0,33116.0,0.14193]
[1609726933559,0.14033567,33124.0,33112.0,4.1417]
[1609726934362,1.14033567,33124.0,33108.0,0.15848]
[1609726934561,4.4921,33117.0,33093.0,0.14309]
[1609726935162,0.14033567,33101.0,33100.0,0.14033567]
[1609726935561,0.14033567,33101.0,33092.0,4.1127]
[1609726935762,0.14033567,33101.0,33067.0,2.02398385]
[1609726935960,0.14033567,33101.0,33080.0,5.0503]
[1609726937163,3.8346,33106.0,33097.0,0.14033567]
[1609726937363,0.13176,33103.0,33097.0,0.14033567]
[1609726939165,0.13176,33103.0,33102.0,0.14033567]
[1609726942370,0.14033567,33106.0,33102.0,0.14033567]
[1609726951783,3.5105,33107.0,33102.0,0.14033567]
[1609726953285,3.5105,33107.0,33106.0,0.14033567]
[1609726957287,3.65083567,33107.0,33106.0,0.14033567]
[1609726962592,3.65083567,33107.0,33088.0,4.2602]
[1609726963292,3.5105,33107.0,33102.0,0.14033567]
[1609726965293,0.14033567,33103.0,33102.0,0.14033567]
[1609726965494,0.77463567,33103.0,33102.0,0.14033567]
[1609726965793,0.94186567,33103.0,33102.0,0.14033567]
[1609726975603,0.16723,33103.0,33102.0,0.14033567]
[1609726975805,0.10215,33110.0,33102.0,0.14033567]
[1609726976005,0.02672906,33111.0,33102.0,0.14033567]
[1609726976408,0.1771,33113.0,33102.0,0.14033567]
[1609726976805,0.02675591,33114.0,33102.0,0.14033567]
[1609726977007,3.46578281,33115.0,33102.0,0.14033567]
[1609726977407,3.46578281,33115.0,33114.0,0.14033567]
[1609726979012,3.439,33115.0,33114.0,0.14033567]
[1609726979410,3.57933567,33115.0,33110.0,0.14033567]
[1609726979611,3.73485567,33115.0,33110.0,0.14033567]
[1609726980212,3.75266682,33115.0,33110.0,0.14033567]
[1609726980713,0.00899717,33113.0,33110.0,0.14033567]
[1609726981213,0.00899788,33112.0,33110.0,0.14033567]
[1609726981412,0.14033567,33111.0,33110.0,0.14033567]
[1609726983620,0.14935039,33111.0,33110.0,0.14033567]
[1609726984419,0.16720712,33111.0,33110.0,0.14033567]
[1609726987827,0.67117074,33111.0,33110.0,0.14033567]
[1609726989630,1.75850529,33111.0,33110.0,0.14033567]
[1609726992235,0.67117074,33111.0,33110.0,0.14033567]
[1609726992637,1.31260057,33111.0,33110.0,0.14033567]
[1609726992835,2.54467749,33111.0,33110.0,0.14033567]
[1609726993236,2.09653078,33111.0,33110.0,0.14033567]
[1609726993838,2.54467581,33111.0,33110.0,0.14033567]
[1609726994338,3.16817581,33111.0,33110.0,0.14033567]
[1609726996041,2.3842456,33111.0,33110.0,0.14033567]
[1609726996741,3.16970353,33111.0,33110.0,0.14033567]
[1609726999950,3.25950353,33111.0,33110.0,0.14033567]
[1609727000150,3.16970353,33111.0,33110.0,0.14033567]
[1609727001255,3.26020353,33111.0,33110.0,0.14033567]
[1609727001655,3.16970353,33111.0,33110.0,0.14033567]
[1609727003156,3.16970353,33111.0,33097.0,4.4327]
[1609727003356,2.54620353,33111.0,33086.0,0.10421]
[1609727003557,4.6881,33106.0,33088.0,3.7865]
[1609727003756,4.6881,33106.0,33103.0,0.14033567]
[1609727003956,4.81216,33106.0,33103.0,0.14033567]
[1609727004159,0.55505388,33104.0,33103.0,0.14033567]
[1609727004758,0.53698153,33104.0,33103.0,0.14033567]
[1609727005660,0.6773172,33104.0,33103.0,0.14033567]
[1609727007763,1.32144682,33104.0,33103.0,0.14033567]
[1609727008264,1.76962969,33104.0,33103.0,0.14033567]
[1609727010264,1.32144682,33104.0,33103.0,0.14033567]
[1609727010867,0.6773172,33104.0,33103.0,0.14033567]
[1609727011465,0.53698153,33104.0,33103.0,0.14033567]
[1609727012266,1.09948153,33104.0,33103.0,0.14033567]
[1609727013668,1.2398172,33104.0,33103.0,0.14033567]
[1609727015868,0.72087456,33104.0,33103.0,0.14033567]
[1609727016374,0.71194925,33104.0,33103.0,0.14033567]
[1609727017772,0.14944925,33104.0,33103.0,0.14033567]
[1609727017972,0.14944925,33104.0,33103.0,3.63223567]
[1609727018173,0.02716137,33104.0,33103.0,3.63223567]
[1609727020077,0.02716137,33104.0,33103.0,0.14033567]
[1609727020477,0.00911358,33104.0,33103.0,0.14033567]
[1609727020878,4.63741358,33104.0,33103.0,0.14033567]
[1609727022581,0.00911358,33104.0,33103.0,0.14033567]
[1609727022782,0.00911358,33104.0,33103.0,4.51473567]
[1609727024884,0.00911358,33104.0,33103.0,0.14033567]
[1609727025787,0.01804561,33104.0,33103.0,0.14033567]
[1609727027388,0.55459307,33104.0,33103.0,0.14033567]
[1609727027889,0.53654746,33104.0,33103.0,0.14033567]
[1609727029490,0.53654746,33104.0,33103.0,3.75803567]
[1609727029691,0.53654746,33104.0,33103.0,0.14033567]
[1609727030290,0.53654746,33104.0,33086.0,0.10421]
[1609727030490,4.8384,33103.0,33087.0,3.6766]
[1609727031790,4.8384,33103.0,33098.0,0.14033567]
[1609727032895,0.009138,33101.0,33098.0,0.14033567]
[1609727033697,0.00376274,33100.0,33098.0,0.14033567]
[1609727033896,0.14033567,33099.0,33098.0,0.14033567]
[1609727050419,0.00376647,33103.0,33098.0,0.14033567]
[1609727051320,0.00376581,33102.0,33098.0,0.14033567]
[1609727051821,0.01291233,33103.0,33098.0,0.14033567]
[1609727052020,0.01291233,33103.0,33102.0,0.14033567]
[1609727052320,0.5186668,33103.0,33102.0,0.14033567]
[1609727053321,0.54215578,33103.0,33102.0,0.14033567]
[1609727054823,1.07051423,33103.0,33102.0,0.14033567]
[1609727055321,0.55561423,33103.0,33102.0,0.14033567]
[1609727055924,0.00912195,33103.0,33102.0,0.14033567]
[1609727056124,0.00912195,33103.0,33102.0,4.12013567]
[1609727056623,0.00912195,33103.0,33102.0,0.14033567]
[1609727057224,0.01287501,33103.0,33102.0,0.14033567]
[1609727058725,0.00912195,33103.0,33102.0,0.14033567]
[1609727060828,0.01287562,33103.0,33102.0,0.14033567]
[1609727062032,0.02716575,33103.0,33102.0,0.14033567]
[1609727063531,3.57706575,33103.0,33102.0,0.14033567]
[1609727066035,4.10368743,33103.0,33102.0,0.14033567]
[1609727068541,4.08564363,33103.0,33102.0,0.14033567]
[1609727070743,3.56792619,33103.0,33102.0,0.14033567]
[1609727073251,4.10353452,33103.0,33102.0,0.14033567]
[1609727074256,4.08550833,33103.0,33102.0,0.14033567]
[1609727075054,4.10353114,33103.0,33102.0,0.14033567]
[1609727075455,3.56792281,33103.0,33102.0,0.14033567]
[1609727077460,0.01802281,33103.0,33102.0,0.14033567]
[1609727077660,0.01802281,33103.0,33102.0,4.12583567]
[1609727078561,0.23444823,33104.0,33102.0,3.84873567]
[1609727078963,0.23444823,33104.0,33102.0,0.14033567]
[1609727079162,0.00375024,33105.0,33102.0,0.14033567]
[1609727079361,0.00375024,33105.0,33104.0,3.8843]
[1609727079962,0.12406,33106.0,33104.0,3.8843]
[1609727080363,0.01286881,33108.0,33104.0,3.8843]
[1609727080563,0.64361943,33111.0,33104.0,3.8843]
[1609727080564,0.0037534,33111.0,33104.0,3.8843]
[1609727082165,0.0037534,33111.0,33110.0,0.14033567]
[1609727083169,0.00375386,33112.0,33110.0,0.14033567]
[1609727084166,0.00375386,33112.0,33111.0,0.6722]
[1609727086270,0.01286034,33112.0,33111.0,0.6722]
[1609727087575,0.003742,33113.0,33111.0,0.6722]
[1609727091281,0.01278154,33113.0,33111.0,0.6722]
[1609727092280,0.003742,33113.0,33111.0,0.6722]
[1609727093882,0.003742,33113.0,33110.0,0.14033567]
[1609727094680,0.633742,33113.0,33110.0,0.14033567]
[1609727094881,0.64276306,33113.0,33110.0,0.14033567]
[1609727096682,0.64276306,33113.0,33110.0,0.69323567]
[1609727099089,0.633742,33113.0,33110.0,0.69323567]
[1609727100887,0.003742,33113.0,33110.0,0.14033567]
[1609727101087,3.6471,33111.0,33110.0,0.14033567]
[1609727101792,3.65080777,33111.0,33110.0,0.14033567]
[1609727102193,3.65610064,33111.0,33110.0,0.14033567]
[1609727102394,3.79643631,33111.0,33110.0,0.14033567]
[1609727102593,0.14933631,33111.0,33110.0,0.14033567]
[1609727102792,4.65783631,33111.0,33110.0,0.14033567]
[1609727103597,4.64883567,33111.0,33110.0,0.14033567]
[1609727104795,4.64883567,33111.0,33100.0,4.2304]
[1609727105697,0.00370644,33108.0,33100.0,4.2304]
[1609727105897,0.12414644,33108.0,33100.0,4.2304]
[1609727106297,0.13314602,33108.0,33100.0,4.2304]
[1609727106497,0.13314602,33108.0,33105.0,0.14033567]
[1609727107600,0.13314602,33108.0,33107.0,3.9564]
[1609727108602,0.12044,33108.0,33107.0,3.9564]
[1609727110902,0.00371058,33112.0,33107.0,3.9564]
[1609727111605,0.00370697,33113.0,33107.0,3.9564]
[1609727111805,0.00370697,33113.0,33105.0,0.14033567]
[1609727112205,0.00370343,33112.0,33105.0,0.14033567]
[1609727112408,0.00370343,33112.0,33111.0,0.14033567]
[1609727113207,0.01269567,33112.0,33111.0,0.14033567]
[1609727114408,0.00899224,33112.0,33111.0,0.14033567]
[1609727116308,0.56319224,33112.0,33111.0,0.14033567]
[1609727116510,1.22472234,33112.0,33111.0,0.14033567]
[1609727116910,1.22472234,33112.0,33100.0,4.4112]
[1609727117111,1.86074014,33112.0,33100.0,4.4112]
[1609727117713,0.00370637,33106.0,33100.0,4.4112]
[1609727117911,0.13298637,33106.0,33100.0,4.4112]
[1609727118113,0.14198551,33106.0,33100.0,4.4112]
[1609727118612,0.14198551,33106.0,33104.0,0.14033567]
[1609727119913,0.6234,33105.0,33104.0,0.14033567]
[1609727120514,0.76373567,33105.0,33104.0,0.14033567]
[1609727120918,0.77644285,33105.0,33104.0,0.14033567]
[1609727121517,0.76373567,33105.0,33104.0,0.14033567]
[1609727122218,1.2944188,33105.0,33104.0,0.14033567]
[1609727122717,1.2944188,33105.0,33092.0,5.0292]
[1609727122917,4.3273,33095.0,33091.0,0.00313171]
[1609727123119,0.6710188,33105.0,33091.0,0.00313171]
[1609727123318,3.7749,33095.0,33091.0,0.00313171]
[1609727123519,0.6710188,33105.0,33091.0,0.00313171]
[1609727124120,4.9636,33092.0,33091.0,0.00313171]
[1609727124519,5.10393567,33092.0,33091.0,0.14346738]
[1609727130423,5.10393567,33092.0,33091.0,0.14033567]
[1609727130624,5.10393567,33092.0,33084.0,0.14033567]
[1609727130824,5.10393567,33092.0,33082.0,4.2023]
[1609727132524,4.9636,33092.0,33083.0,0.14033567]
[1609727133730,0.00368941,33095.0,33083.0,0.14033567]
[1609727133926,4.7313,33086.0,33083.0,0.14033567]
[1609727134527,0.14033567,33084.0,33083.0,0.14033567]
[1609727139728,0.0089845,33095.0,33083.0,4.81073567]
[1609727139928,0.0089845,33095.0,33083.0,0.14033567]
[1609727140128,0.0089845,33095.0,33089.0,4.2785]
[1609727140529,0.00897732,33097.0,33089.0,4.2785]
[1609727140728,0.14033567,33096.0,33094.0,0.14033567]
[1609727140928,0.14033567,33096.0,33095.0,0.5444]
[1609727141128,0.00897732,33097.0,33095.0,0.5444]
[1609727141329,0.00897732,33097.0,33094.0,0.14033567]
[1609727141528,0.00897732,33097.0,33096.0,4.6037]
[1609727142128,0.01301732,33098.0,33096.0,4.6037]
[1609727142328,0.52825361,33099.0,33096.0,4.6037]
[1609727142529,0.63386913,33100.0,33096.0,4.6037]
[1609727142530,0.52884398,33102.0,33096.0,4.6037]
[1609727142728,0.52884398,33102.0,33098.0,0.14033567]
[1609727143230,0.12928,33106.0,33098.0,0.14033567]
[1609727143531,0.005,33108.0,33098.0,0.14033567]
[1609727144731,0.005,33108.0,33107.0,0.14033567]
[1609727150237,0.005,33108.0,33098.0,3.681]
[1609727150438,0.005,33108.0,33083.0,0.15101]
[1609727150638,3.4686,33105.0,33095.0,0.14033567]
[1609727152640,0.14033567,33096.0,33095.0,0.14033567]
[1609727153041,0.27545567,33096.0,33095.0,0.14033567]
[1609727153741,0.27545567,33096.0,33090.0,3.8191]
[1609727153942,0.27545567,33096.0,33075.0,0.11642]
[1609727154146,0.27545567,33096.0,33076.0,3.7532]
[1609727154544,0.27545567,33096.0,33076.0,3.86919]
[1609727154745,0.13512,33096.0,33089.0,0.14033567]
[1609727156748,0.13512,33096.0,33095.0,0.14033567]
[1609727158050,3.8062,33101.0,33095.0,0.14033567]
[1609727158752,0.14033567,33096.0,33095.0,0.14033567]
[1609727160054,0.85613567,33096.0,33095.0,0.14033567]
[1609727162455,0.85613567,33096.0,33083.0,4.0578]
[1609727162656,0.7158,33096.0,33086.0,0.14033567]
[1609727163455,0.11171,33097.0,33086.0,0.14033567]
[1609727163655,4.1301,33094.0,33086.0,0.14033567]
[1609727164756,0.14033567,33087.0,33086.0,0.14033567]
[1609727165158,5.16633567,33087.0,33076.0,0.11599]
[1609727165355,5.16633567,33087.0,33074.0,4.2006]
[1609727166757,5.026,33087.0,33082.0,0.14033567]
[1609727168762,0.14033567,33083.0,33082.0,0.14033567]
[1609727169762,0.14033567,33083.0,33074.0,4.2006]
[1609727170762,5.026,33087.0,33079.0,0.14033567]
[1609727172865,0.14033567,33080.0,33079.0,0.14033567]
[1609727174169,0.11736,33090.0,33079.0,0.14033567]
[1609727174369,0.53542292,33093.0,33083.0,4.1856]
[1609727174569,0.53629185,33095.0,33083.0,4.1856]
[1609727174769,0.53629185,33095.0,33092.0,0.14033567]
[1609727175272,0.53646781,33096.0,33092.0,0.14033567]
[1609727176070,1.13676781,33096.0,33092.0,0.14033567]
[1609727176771,0.14033567,33093.0,33092.0,0.14033567]
[1609727181474,5.12883567,33093.0,33092.0,0.14033567]
[1609727181775,5.12883567,33093.0,33081.0,4.8331]
[1609727182977,4.9885,33093.0,33087.0,0.14033567]
[1609727183378,0.11171,33097.0,33087.0,0.14033567]
[1609727183779,0.53860353,33098.0,33087.0,0.14033567]
[1609727184379,0.53889173,33097.0,33087.0,0.14033567]
[1609727184582,1.16142173,33097.0,33087.0,0.14033567]
[1609727184881,0.14033567,33089.0,33087.0,0.14033567]
[1609727186184,1.16142173,33097.0,33087.0,0.14033567]
[1609727186384,0.64492173,33097.0,33087.0,0.14033567]
[1609727186586,0.64492173,33097.0,33093.0,3.4495]
[1609727186886,0.64492173,33097.0,33096.0,0.14033567]
[1609727187287,0.10603,33097.0,33096.0,0.14033567]
[1609727188888,0.24636567,33097.0,33091.0,0.14033567]
[1609727189288,4.10086567,33097.0,33091.0,0.14033567]
[1609727190888,0.14033567,33092.0,33091.0,0.14033567]
[1609727198204,0.22993567,33092.0,33091.0,0.14033567]
[1609727198403,0.14033567,33092.0,33091.0,0.14033567]
[1609727199304,0.22973567,33092.0,33091.0,0.14033567]
[1609727200005,0.84733567,33092.0,33091.0,0.14033567]
[1609727200205,0.84733567,33092.0,33078.0,4.2318]
[1609727201005,0.707,33092.0,33083.0,0.14033567]
[1609727201205,0.0898,33091.0,33083.0,0.14033567]
[1609727202109,0.707,33092.0,33083.0,0.14033567]
[1609727203008,0.14033567,33084.0,33083.0,0.14033567]
[1609727204110,0.23103567,33084.0,33083.0,0.14033567]
[1609727204511,0.81773567,33084.0,33083.0,0.14033567]
[1609727205615,0.72703567,33084.0,33083.0,0.14033567]
[1609727206716,0.81643567,33084.0,33083.0,0.14033567]
[1609727207217,0.72703567,33084.0,33083.0,0.14033567]
[1609727208718,0.14033567,33084.0,33083.0,0.14033567]
[1609727209018,0.23163567,33084.0,33083.0,0.14033567]
[1609727209622,0.14033567,33084.0,33083.0,0.14033567]
[1609727209820,5.15313567,33084.0,33083.0,0.14033567]
[1609727210722,5.24433567,33084.0,33083.0,0.14033567]
[1609727211123,5.24433567,33084.0,33074.0,0.005]
[1609727211423,5.15313567,33084.0,33074.0,0.005]
[1609727211622,0.14033567,33084.0,33074.0,0.005]
[1609727212426,0.0904,33083.0,33074.0,0.005]
[1609727213027,0.0904,33083.0,33078.0,0.14033567]
[1609727213427,5.0155,33079.0,33074.0,0.005]
[1609727213627,0.65109625,33091.0,33074.0,0.005]
[1609727213827,4.105,33075.0,33074.0,0.005]
[1609727215026,4.24533567,33075.0,33074.0,0.005]
[1609727215727,4.24533567,33075.0,33062.0,2.04656042]
[1609727217029,0.14033567,33063.0,33062.0,2.04656042]
[1609727217728,4.14083567,33063.0,33062.0,2.04656042]
[1609727218629,4.23083567,33063.0,33062.0,2.04656042]
[1609727219432,0.23033567,33063.0,33062.0,2.04656042]
[1609727219631,0.14033567,33063.0,33062.0,2.04656042]
[1609727219832,0.14033567,33063.0,33059.0,0.14033567]
[1609727220833,0.0914,33062.0,33059.0,0.14033567]
[1609727221132,0.14033567,33063.0,33059.0,0.14033567]
[1609727222435,0.0906,33062.0,33059.0,0.14033567]
[1609727222637,3.4363,33061.0,33059.0,0.14033567]
[1609727225139,0.0918,33060.0,33059.0,0.14033567]
[1609727225436,0.14033567,33063.0,33059.0,0.14033567]
[1609727230441,0.75623567,33063.0,33059.0,0.14033567]
[1609727230642,0.14033567,33063.0,33059.0,0.14033567]
[1609727231442,4.4668,33060.0,33059.0,0.14033567]
[1609727232944,4.4668,33060.0,33047.0,2.04006043]
[1609727233144,4.4668,33060.0,33034.0,4.5396]
[1609727233145,4.4668,33060.0,33052.0,0.14033567]
[1609727233343,4.4668,33060.0,33052.0,0.28815567]
[1609727233546,0.68712141,33076.0,33052.0,0.28815567]
[1609727233746,3.7476,33070.0,33052.0,0.28815567]
[1609727235148,0.14033567,33053.0,33052.0,0.28815567]
[1609727240754,0.71533567,33053.0,33052.0,0.28815567]
[1609727242858,0.14033567,33053.0,33052.0,0.28815567]
[1609727245960,0.82713567,33053.0,33052.0,0.28815567]
[1609727248565,0.82713567,33053.0,33052.0,0.14782]
[1609727248766,0.82713567,33053.0,33040.0,0.005]
[1609727248966,0.14033567,33053.0,33051.0,0.13306]
[1609727249165,3.5522,33052.0,33051.0,0.13306]
[1609727249768,0.14033567,33053.0,33051.0,0.13306]
[1609727251368,0.14033567,33053.0,33052.0,0.14033567]
[1609727261779,0.14033567,33053.0,33051.0,0.13306]
[1609727262283,0.14033567,33053.0,33043.0,3.6622]
[1609727263382,0.14033567,33053.0,33052.0,0.14033567]
[1609727263986,0.14033567,33053.0,33048.0,0.14363]
[1609727265084,4.7457,33049.0,33040.0,0.005]
[1609727265283,0.14033567,33053.0,33040.0,0.005]
[1609727265486,4.65493567,33041.0,33040.0,0.005]
[1609727266086,0.14033567,33041.0,33040.0,0.005]
[1609727267890,0.14033567,33041.0,33040.0,4.7347]
[1609727268289,0.14033567,33041.0,33040.0,0.005]
[1609727268490,4.08403567,33041.0,33040.0,0.005]
[1609727269991,0.14033567,33041.0,33024.0,2.04296785]
[1609727270193,0.14033567,33041.0,33018.0,0.14033567]
[1609727271493,3.9801,33034.0,33024.0,0.14033567]
[1609727271695,0.14035,33042.0,33024.0,0.14033567]
[1609727271896,0.11957,33034.0,33024.0,0.14033567]
[1609727273396,0.11957,33034.0,33028.0,0.14033567]
[1609727275496,0.11957,33034.0,33033.0,0.14033567]
[1609727276499,0.11957,33034.0,33033.0,0.69803567]
[1609727276901,0.14035,33042.0,33033.0,0.69803567]
[1609727277103,0.53702522,33054.0,33033.0,0.14033567]
[1609727277302,0.53702522,33054.0,33037.0,5.0213]
[1609727277502,0.53702522,33054.0,33040.0,0.14033567]
[1609727277802,0.53701515,33056.0,33040.0,0.14033567]
[1609727278503,0.53720212,33058.0,33040.0,0.14033567]
[1609727278702,0.53720212,33058.0,33037.0,5.0213]
[1609727279204,0.53692092,33056.0,33018.0,0.14023]
[1609727279404,0.53692092,33056.0,33017.0,2.03897129]
[1609727279606,4.27932092,33056.0,33038.0,0.14033567]
[1609727280008,3.7424,33056.0,33038.0,0.14033567]
[1609727280407,0.53728659,33057.0,33038.0,0.14033567]
[1609727280807,0.54228659,33057.0,33038.0,0.14033567]
[1609727281009,0.005,33057.0,33038.0,0.14033567]
[1609727281207,0.005,33057.0,33031.0,3.425]
[1609727281607,0.005,33057.0,33035.0,0.14033567]
[1609727282708,1.0,33052.0,33031.0,3.425]
[1609727282909,1.13982,33052.0,33031.0,3.425]
[1609727283508,0.14033567,33032.0,33031.0,3.425]
[1609727284007,0.14033567,33032.0,33026.0,0.14033567]
[1609727285611,0.14033567,33027.0,33026.0,0.14033567]
[1609727286812,0.15458,33035.0,33026.0,0.14033567]
[1609727286813,0.15458,33035.0,33026.0,4.50133567]
[1609727287615,1.0,33046.0,33034.0,0.14033567]
[1609727287814,1.0,33046.0,33034.0,3.79303567]
[1609727288216,0.4972,33046.0,33034.0,3.79303567]
[1609727288616,0.11465,33062.0,33045.0,6.0]
[1609727289316,0.11465,33062.0,33056.0,4.1712]
[1609727289517,0.11465,33062.0,33061.0,0.14033567]
[1609727289716,0.64591667,33065.0,33061.0,0.14033567]
[1609727291618,0.35871667,33065.0,33061.0,0.14033567]
[1609727292622,0.79045352,33074.0,33067.0,3.7518]
[1609727293222,0.48565352,33074.0,33067.0,3.7518]
[1609727293622,0.48565352,33074.0,33073.0,0.14033567]
[1609727293823,1.25743355,33088.0,33073.0,0.14033567]
[1609727293824,0.90665249,33096.0,33073.0,0.65143567]
[1609727294022,0.90665249,33096.0,33073.0,0.14033567]
[1609727294422,0.90665249,33096.0,33091.0,4.5074]
[1609727294623,0.91057248,33102.0,33095.0,1.0]
[1609727295023,0.2707,33106.0,33095.0,1.0]
[1609727295623,0.2707,33106.0,33105.0,0.14033567]
[1609727296623,0.91104681,33115.0,33105.0,1.14033567]
[1609727296823,0.91104681,33115.0,33113.0,4.6896]
[1609727297323,0.91146806,33116.0,33113.0,4.6896]
[1609727297522,0.91146806,33116.0,33114.0,0.14033567]
[1609727297823,0.91161645,33118.0,33114.0,0.14033567]
[1609727299327,0.90826513,33128.0,33114.0,0.14033567]
[1609727299524,0.14033567,33115.0,33114.0,0.14033567]
[1609727299726,0.90889596,33129.0,33114.0,0.13533567]
[1609727300326,0.90889596,33129.0,33123.0,3.6111]
[1609727300727,0.90889596,33129.0,33128.0,1.0]
[1609727301628,1.04923163,33129.0,33128.0,1.14033567]
[1609727302128,1.04923163,33129.0,33128.0,1.0]
[1609727302828,1.04923163,33129.0,33128.0,1.5304]
[1609727303529,1.04923163,33129.0,33128.0,1.67073567]
[1609727303932,0.90889596,33129.0,33128.0,1.67073567]
[1609727304633,0.90889596,33129.0,33128.0,0.67073567]
[1609727305533,1.04923163,33129.0,33128.0,0.67073567]
[1609727305732,1.04923163,33129.0,33128.0,0.14033567]
[1609727305935,1.16515163,33129.0,33116.0,3.85]
[1609727307537,0.14033567,33117.0,33116.0,3.85]
[1609727308638,0.14033567,33117.0,33116.0,4.85]
[1609727314648,0.14033567,33117.0,33116.0,3.85]
[1609727317950,0.14033567,33117.0,33108.0,0.14033567]
[1609727318150,0.14033567,33117.0,33104.0,0.14452]
[1609727318552,0.14033567,33117.0,33100.0,5.0]
[1609727318751,0.14033567,33117.0,33099.0,3.4827]
[1609727318752,0.14033567,33117.0,33104.0,1.0]
[1609727319654,0.14033567,33105.0,33104.0,1.0]
[1609727320655,0.14033567,33105.0,33099.0,4.8287]
[1609727321557,0.14033567,33100.0,33099.0,4.8287]
[1609727322660,0.14033567,33100.0,33099.0,5.8287]
[1609727322961,0.14033567,33100.0,33099.0,1.0]
[1609727324662,0.14033567,33100.0,33097.0,0.005]
[1609727328669,0.14033567,33100.0,33099.0,1.0]
[1609727330674,0.14033567,33100.0,33097.0,0.005]
[1609727332376,0.29580567,33100.0,33097.0,0.005]
[1609727332778,0.29580567,33100.0,33099.0,1.0]
[1609727334679,0.29580567,33100.0,33097.0,0.005]
[1609727336184,0.6384,33098.0,33097.0,0.005]
[1609727337387,0.29580567,33100.0,33097.0,0.005]
[1609727338789,0.29580567,33100.0,33099.0,1.0]
[1609727340691,0.29580567,33100.0,33097.0,0.005]
[1609727346598,0.6172,33099.0,33097.0,0.005]
[1609727346800,1.0,33099.0,33097.0,0.005]
[1609727347899,1.61914111,33098.0,33097.0,0.005]
[1609727349402,0.65245848,33098.0,33097.0,0.005]
[1609727349901,0.82159099,33098.0,33097.0,0.005]
[1609727352905,0.65078664,33099.0,33097.0,0.005]
[1609727353206,0.81970301,33099.0,33097.0,0.005]
[1609727353911,0.94710538,33100.0,33097.0,0.005]
[1609727356109,0.65028839,33098.0,33097.0,0.005]
[1609727356309,0.65028839,33098.0,33091.0,0.2031]
[1609727356710,0.65028839,33098.0,33081.0,3.5802]
[1609727356711,1.65028839,33098.0,33081.0,3.5802]
[1609727357612,0.76049183,33097.0,33081.0,3.5802]
[1609727357913,0.14033567,33082.0,33081.0,3.5802]
[1609727358114,0.14033567,33082.0,33076.0,3.8366]
[1609727360015,0.14033567,33077.0,33076.0,3.8366]
[1609727361718,0.14033567,33077.0,33063.0,0.14033567]
[1609727361920,0.14033567,33064.0,33063.0,0.14033567]
[1609727366827,0.13533567,33064.0,33063.0,0.14033567]
[1609727367928,0.14033567,33070.0,33063.0,0.14033567]
[1609727368127,0.14033567,33070.0,33063.0,0.28221567]
[1609727368328,0.14033567,33070.0,33069.0,3.8038]